Cogmind - Beta 10.2 @@@ ROGUE MODE // 2021.12.15 @ 12:46:39 Player: NM-Z Result: Destroyed by EX-DEC with AWS/EX-DEC Performance ------------- Evolutions (1) 500 Regions Visited (5) 1000 Robots Destroyed (83) 415 Value Destroyed (1733) 1733 Prototype IDs (25) 500 Alien Tech Used (0) 0 Bonus (322) 322 TOTAL SCORE: 4470 Bonus ------- High Alert Combat Kills 50 Aligned with FarCom 300 Friendly Fire -28 Cogmind --------- Core Integrity 0/400 Matter 164/300 Energy 143/280 System Corruption 4% Temperature Cool (0) Movement Core (850) Ox16 Location -9/Exiles Parts ------- > --- POWER (1) -------- Heavy Ion Engine > --- PROPULSION (3) --- (None) > --- UTILITY (3) ------ Large Storage Unit Large Storage Unit Hardened Light Armor Plating > --- WEAPON (2) ------- Rocket Launcher > --- INVENTORY (16) --- Large Battery (300) Experimental Sensor Array Propulsion Shielding Propulsion Shielding Hardened Light Armor Plating Rocket Launcher Rocket Launcher Maul Peak State ------------ > --- POWER ------------ Heavy Ion Engine > --- PROPULSION ------- Improved Treads Improved Treads Improved Treads > --- UTILITY ---------- Large Storage Unit Large Storage Unit Hardened Light Armor Plating > --- WEAPON ----------- Heavy Assault Rifle Heavy Assault Rifle > --- INVENTORY -------- Heavy Ion Engine Heavy Ion Engine Large Battery Experimental Sensor Array Propulsion Shielding Propulsion Shielding Hardened Light Armor Plating Hardened Light Armor Plating Hardened Light Armor Plating Rocket Launcher Rocket Launcher Rocket Launcher Maul Deploy-a-Sentry Deploy-a-Sentry Deploy-a-Sentry [Rating: 22] Favorites ----------- Power Light Ion Engine Engine Light Ion Engine Propulsion Improved Treads Treads Improved Treads Utility Small Storage Unit Storage Small Storage Unit Hackware EX Chip 1 Protection Hardened Light Armor Plating Weapon EM Pulse Gun Energy Gun EM Pulse Gun Ballistic Gun Heavy Assault Rifle Launcher Rocket Launcher Build | -11 -10 -10 -9 -9 -9 ------- Run | Scr Mat Min Mat Min Exi Slots Evolved 2 | . . . 2 . . Power . | . . . . . . Propulsion 1 | . . . 1 . . Utility 1 | . . . 1 . . Weapon . | . . . . . . Parts Attached 52 | 6 11 1 19 . 15 Power 6 | 1 1 . 2 . 2 Engine 6 | 1 1 . 2 . 2 Core . | . . . . . . Reactor . | . . . . . . Propulsion 13 | 2 5 . 6 . . Treads 13 | 2 5 . 6 . . Leg . | . . . . . . Wheel . | . . . . . . Hover . | . . . . . . Flight . | . . . . . . Utility 12 | 2 2 . 4 . 4 Device . | . . . . . . Storage 6 | 2 2 . 2 . . Processor . | . . . . . . Hackware 1 | . . . . . 1 Protection 5 | . . . 2 . 3 Artifact . | . . . . . . Weapon 21 | 1 3 1 7 . 9 Energy Gun 6 | 1 2 . 3 . . Energy Cannon . | . . . . . . Ballistic Gun 8 | . 1 . 2 . 5 Ballistic Cannon . | . . . . . . Launcher 7 | . . 1 2 . 4 Special Weapon . | . . . . . . Impact Weapon . | . . . . . . Slashing Weapon . | . . . . . . Piercing Weapon . | . . . . . . Special Melee Weapon . | . . . . . . Unidentified Prototypes . | . . . . . . Parts Lost 17 | . 1 1 6 . 9 Power 3 | . . . 1 . 2 Propulsion 6 | . . . 3 . 3 Utility 2 | . . . . . 2 Weapon 6 | . 1 1 2 . 2 Highest Loss Streak 5 | . 1 1 4 . 5 Average Slot Usage (%) 92 | . 93 90 88 100 97 Engine 11 | . 14 14 8 11 11 Treads 29 | . 28 28 30 33 30 Storage 24 | . 28 28 22 22 22 Protection 5 | . . . 7 11 10 Energy Gun 15 | . 20 18 13 22 6 Ballistic Gun 4 | . 1 . 4 . 10 Launcher 1 | . . . . . 4 Naked Turns . | . . . . . . Heaviest Build 60 | 13 43 43 60 49 53 Greatest Support 69 | 3 46 40 69 69 69 Greatest Overweight (x) 4 | 4 4 1 1 . 1 Average Overweight (x) . | 1 1 1 . . . Largest Inventory Capacity 18 | 8 14 14 18 16 16 Average Capacity 13 | 6 9 14 14 16 16 Most Carried 16 | 4 14 14 16 16 16 Average Carried 11 | 1 8 13 13 16 13 Final Capacity 16 | 8 14 14 16 16 16 Final Carried 16 | 4 14 14 16 16 8 Class Distribution -------------------- 100% | Mutant Dominant Class ---------------- Mutant | -10/Materials Mutant | -10/Mines Mutant | -9/Materials Mutant | -9/Mines Mutant | -9/Exiles Resources | -11 -10 -10 -9 -9 -9 ----------- Run | Scr Mat Min Mat Min Exi Matter Collected 1109 | 260 121 20 353 . 355 Remotely . | . . . . . . Salvage Created 2618 | 99 1146 155 1058 . 160 Parts 185 | 4 73 10 69 . 29 Haulers Intercepted 4 | . 2 . 2 . . Recyclers Shooed 3 | . 2 . 1 . . Parts Field Recycled . | . . . . . . Retrieved Matter . | . . . . . . Parts Self-Destructed . | . . . . . . Prevented . | . . . . . . Kills | -11 -10 -10 -9 -9 -9 ------- Run | Scr Mat Min Mat Min Exi Combat Hostiles Destroyed 56 | . 20 5 26 . 5 Melee 3 | . . . 3 . . Guns 37 | . 18 2 14 . 3 AOE 14 | . 2 2 8 . 2 Classes Destroyed 13 | 2 7 . 1 . 3 Worker 4 | . 1 1 2 . . Builder 4 | . 1 . 3 . . Tunneler 1 | 1 . . . . . Hauler 4 | . 2 . 2 . . Recycler 4 | 1 2 . 1 . . Operator 1 | . 1 . . . . Turret 1 | . . . . . 1 Watcher 6 | . 3 . 3 . . Swarmer 16 | . 3 3 10 . . Grunt 29 | . 17 2 10 . . Sentry 6 | . . . 6 . . Zionite 5 | . . . . . 5 Assembled 4 | . . . . . 4 Best Kill Streak 10 | 1 4 6 10 . 5 Combat Bots Only 9 | . 4 5 9 . 5 Max Kills in Single Turn 3 | 1 2 2 3 . 2 Gunslinging . | . . . . . . Exploded 2 | . 1 1 2 . 2 Melee 1 | . . . 1 . . Uniques/NPCs Destroyed 3 | . . . . . 3 8R-AWN (-9/Exiles) EX-BIN (-9/Exiles) EX-HEX (-9/Exiles) Combat | -11 -10 -10 -9 -9 -9 -------- Run | Scr Mat Min Mat Min Exi Damage Taken 3850 | . 630 231 1318 . 1671 Core 655 | . 173 67 165 . 250 Absorbed by Shields . | . . . . . . Core Remaining (%) 52 | 100 . 4 . . . Volleys Fired 246 | 9 91 13 87 . 46 Largest 2 | 1 2 2 2 . 2 Hottest 80 | 40 80 80 80 . 66 Shots Fired 377 | 9 123 23 136 . 86 Gun 347 | 9 123 22 123 . 70 Cannon . | . . . . . . Launcher 30 | . . 1 13 . 16 Special . | . . . . . . Kinetic 119 | . 11 . 38 . 70 Thermal . | . . . . . . Explosive 30 | . . 1 13 . 16 Electromagnetic 228 | 9 112 22 85 . . Robot Hit Streak 16 | 4 16 8 13 . 10 Robot Miss Streak 3 | 2 3 1 3 . 3 Penetration Max . | . . . . . . Secondary Targets 2 | . 1 . . . 1 Max Gunslinging Chain 1 | . 1 . . . 1 Shots Hit Robots 257 | 6 83 16 99 . 53 Core Hits 134 | 3 39 8 57 . 27 Critical Hits . | . . . . . . Critical Kills . | . . . . . . Critical Parts Destroyed . | . . . . . . Melee Attacks . | . . . . . . Impact . | . . . . . . Slashing . | . . . . . . Piercing . | . . . . . . Sneak Attacks . | . . . . . . Combat Hostiles . | . . . . . . Follow-up Attacks . | . . . . . . Damage Inflicted 5481 | 92 1443 395 2233 . 1318 Guns 3442 | 92 1243 174 1297 . 636 Cannons . | . . . . . . Explosions 2010 | . 198 221 909 . 682 Melee . | . . . . . . Ramming 29 | . 2 . 27 . . Kinetic 1057 | . 81 . 340 . 636 Thermal 733 | . 198 152 383 . . Explosive 1277 | . . 69 526 . 682 Electromagnetic 2385 | 92 1162 174 957 . . Impact . | . . . . . . Slashing . | . . . . . . Piercing . | . . . . . . Highest Corruption 4 | . . . . . 4 Average Corruption 2 | . . . . . 2 Corruption Purged . | . . . . . . Overload Shots . | . . . . . . Overflow Damage 156 | . . 31 85 . 40 Projectiles . | . . . . . . Explosions 156 | . . 31 85 . 40 Melee . | . . . . . . Knockbacks . | . . . . . . Impact . | . . . . . . Kinetic . | . . . . . . Secondary . | . . . . . . Self-Inflicted Damage 126 | . . . 75 . 51 Shots 8 | . . . 7 . 1 Rammed 12 | . 1 . 11 . . Targets Rammed 14 | . 1 . 13 . . Kicked . | . . . . . . Crushed 2 | . . . 2 . . Highest Temperature 234 | . 120 234 156 . 60 Average Temperature 45 | . 29 134 43 . 18 Received Heat Transfer 698 | . 264 54 360 . 20 Effects 1 | . . 1 . . . Interference 1 | . . 1 . . . Siege Activations . | . . . . . . Robots Corrupted 5 | . 2 1 2 . . Combat Hostiles 2 | . . 1 1 . . Parts Fried 11 | . 5 1 5 . . Impact Corruptions . | . . . . . . Robots Melted . | . . . . . . Combat Hostiles . | . . . . . . Parts Melted . | . . . . . . Heat Transferred 700 | . 100 200 400 . . Parts Sabotaged . | . . . . . . Parts Stolen . | . . . . . . Parts Stripped . | . . . . . . Power Chain Reactions 10 | . 3 1 6 . . Missiles Intercepted . | . . . . . . Alert | -11 -10 -10 -9 -9 -9 ------- Run | Scr Mat Min Mat Min Exi Peak Influence 598 | 10 391 234 598 195 . Initial 189 | . 6 119 91 189 . Average 245 | 4 183 197 369 193 . Maximum Alert Level 2 | . 1 1 2 . . Low Security (%) 40 | 100 49 32 16 100 . Level 1 45 | . 50 67 42 . . Level 2 14 | . . . 40 . . Level 3 . | . . . . . . Level 4 . | . . . . . . Level 5 . | . . . . . . High Security . | . . . . . . Max Security . | . . . . . . Squads Dispatched 11 | . 7 . 4 . . Investigation 7 | . 5 . 2 . . Extermination . | . . . . . . Reinforcement 3 | . 2 . 1 . . Assault 1 | . . . 1 . . Garrison . | . . . . . . Intercept . | . . . . . . Construction Impeded 1 | . . . 1 . . Haulers Reinforced . | . . . . . . Stealth | -11 -10 -10 -9 -9 -9 --------- Run | Scr Mat Min Mat Min Exi Distress Signals 2 | . . . 2 . . Communications Jammed . | . . . . . . Distress Signals . | . . . . . . Times Spotted 99 | . 32 7 37 . 23 Peak Tracking Total 8 | . 5 4 5 . 8 Tactical Retreats 8 | . 3 . 1 . 4 Traps | -11 -10 -10 -9 -9 -9 ------- Run | Scr Mat Min Mat Min Exi Traps Triggered 1 | . 1 . . . . Indirectly . | . . . . . . Trap Hack Attempts . | . . . . . . Triggered . | . . . . . . Disarmed . | . . . . . . Reprogrammed . | . . . . . . Reused . | . . . . . . Traps Extracted . | . . . . . . Installed . | . . . . . . Triggered . | . . . . . . Machines | -11 -10 -10 -9 -9 -9 ---------- Run | Scr Mat Min Mat Min Exi Machines Disabled 12 | . 2 . 4 . 6 Max in Single Turn 3 | . 1 . 2 . 3 Machines Sabotaged . | . . . . . . Garrisons Compromised . | . . . . . . Overloaded Fab Kills . | . . . . . . Fab Network Shutdowns . | . . . . . . Hacking | -11 -10 -10 -9 -9 -9 --------- Run | Scr Mat Min Mat Min Exi Machines Accessed 14 | . 6 1 5 1 1 Terminals 10 | . 4 1 4 1 . Fabricators . | . . . . . . Repair Stations 1 | . . . 1 . . Recycling Units 2 | . 2 . . . . Scanalyzers . | . . . . . . Garrison Access . | . . . . . . Total Hacks 46 | . 21 2 18 4 1 Successful 24 | . 13 1 8 1 1 Failed 21 | . 7 1 10 3 . Catastrophic . | . . . . . . Database Lockouts 1 | . 1 . . . . Manual 32 | . 15 . 11 5 1 Terminals 37 | . 18 2 13 4 . Fabricators . | . . . . . . Repair Stations 5 | . . . 5 . . Recycling Units 3 | . 3 . . . . Scanalyzers . | . . . . . . Garrison Access . | . . . . . . Terminal Hacks 12 | . 7 1 2 1 1 Part Schematic 1 | . 1 . . . . Robot Analysis 4 | . 2 . 1 1 . Prototype ID Bank 1 | . 1 . . . . Terminal Index 2 | . 1 . 1 . . Alert Level 1 | . 1 . . . . Recall Investigation 1 | . 1 . . . . Zone Layout 1 | . . 1 . . . EX-Prototype ID Bank 1 | . . . . . 1 Fabricator Hacks . | . . . . . . Repair Station Hacks 4 | . . . 4 . . Scan Component 2 | . . . 2 . . Repair 2 | . . . 2 . . Recycling Unit Hacks 1 | . 1 . . . . Report Inventory 1 | . 1 . . . . Scanalyzer . | . . . . . . Garrison Access Hacks . | . . . . . . Unauthorized Hacks 7 | . 5 . 2 . . Terminals 5 | . 3 . 2 . . Track 3 | . 2 . 1 . . Botnet 1 | . 1 . . . . Operators 1 | . . . 1 . . Fabricators . | . . . . . . Repair Stations . | . . . . . . Recycling Units 2 | . 2 . . . . Tunnel 2 | . 2 . . . . Scanalyzers . | . . . . . . Garrison Access . | . . . . . . Data Cores Recovered . | . . . . . . Used . | . . . . . . Hacking Detections 11 | . 4 1 5 1 . Full Trace Events 3 | . 1 . 2 . . Feedback Events . | . . . . . . Feedback Blocked . | . . . . . . Robot Schematics Acquired . | . . . . . . Robots Built . | . . . . . . Matter . | . . . . . . Time . | . . . . . . Total Robot Build Rating . | . . . . . . Part Schematics Acquired 1 | . 1 . . . . Parts Built . | . . . . . . Matter . | . . . . . . Time . | . . . . . . Total Part Build Rating . | . . . . . . Parts Repaired 2 | . . . 2 . . Time 64 | . . . 64 . . Parts Recycled . | . . . . . . Recycled Matter . | . . . . . . Retrieved Matter . | . . . . . . Retrieved Components . | . . . . . . Parts Scanalyzed . | . . . . . . Part Schematics Acquired . | . . . . . . Parts Damaged . | . . . . . . Bothacking | -11 -10 -10 -9 -9 -9 ------------ Run | Scr Mat Min Mat Min Exi Used RIF Installer . | . . . . . . Robots Hacked . | . . . . . . Non-combat . | . . . . . . Combat . | . . . . . . Robot Hacks Applied . | . . . . . . Relay Couplers Released . | . . . . . . Robots Rewired . | . . . . . . Allies Hacked . | . . . . . . Hacks Repelled . | . . . . . . Allies | -11 -10 -10 -9 -9 -9 -------- Run | Scr Mat Min Mat Min Exi Total Allies 3 | . . . . 3 . Largest Group 3 | . . . . 3 3 Highest-Rated Group 40 | . . . . 40 40 Highest-Rated Ally 16 | . . . . 16 16 Total Orders 4 | . . . . . 4 STAY 3 | . . . . . 3 FOLLOW 1 | . . . . . 1 Ally Attacks 28 | . . . . . 28 Total Damage 1262 | . . . . . 1262 Kills 1 | . . . . . 1 Allies Corrupted . | . . . . . . Allies Melted . | . . . . . . Turrets Deployed 3 | . . . . . 3 Intel | -11 -10 -10 -9 -9 -9 ------- Run | Scr Mat Min Mat Min Exi Robot Analysis Total 4 | . 2 . 1 1 . Derelict Logs Recovered 1 | . . . . 1 . Drone Launches . | . . . . . . Drone Recoveries . | . . . . . . Exploration | -11 -10 -10 -9 -9 -9 ------------- Run | Scr Mat Min Mat Min Exi Turns Passed 4506 | 122 1620 326 1232 147 1059 Spaces Moved 2116 | 66 719 159 532 90 550 Core 210 | 66 144 . . . . Treads 1906 | . 575 159 532 90 550 Legs . | . . . . . . Wheels . | . . . . . . Hover . | . . . . . . Flight . | . . . . . . Fastest Speed 50 | 50 160 180 160 160 160 Average Speed 169 | 140 182 180 161 160 162 Slowest Speed 250 | 250 250 180 180 160 180 Overloaded Moves . | . . . . . . Propulsion Burnouts . | . . . . . . Robots Hopped . | . . . . . . Cave-ins Triggered . | . . . . . . Exploration Rate (%) 46 | 4 74 56 57 21 64 Regions Visited 5 Branch Regions 3 Pre-discovered Areas 2 | . 2 . . . . Known Exits Taken . | . . . . . . Unknown Exits Taken 5 | 1 1 1 1 1 . Scrap Searched . | . . . . . . Spaces Dug . | . . . . . . Terrain Destroyed 114 | . 11 6 61 . 36 Melee . | . . . . . . Projectile . | . . . . . . AOE 114 | . 11 6 61 . 36 Terrain Rammed . | . . . . . . Walls Destroyed . | . . . . . . Machines Disabled . | . . . . . . Actions | -11 -10 -10 -9 -9 -9 --------- Run | Scr Mat Min Mat Min Exi Total 2655 | 84 911 177 764 93 626 Wait 161 | . 61 2 90 4 4 Move 2111 | 65 718 158 531 89 550 Hop . | . . . . . . Pick Up 38 | 4 15 1 15 . 3 Fast Attach 15 | 6 4 . 4 . 1 Attach 16 | . 2 1 7 . 6 Detach 6 | . 3 1 . . 2 Swap 21 | . 5 . 8 . 8 Drop 27 | . 11 1 9 . 6 Fire 246 | 9 91 13 87 . 46 Melee . | . . . . . . Ram . | . . . . . . Kick . | . . . . . . Crush 14 | . 1 . 13 . . Escape Stasis . | . . . . . . Rewire . | . . . . . . Trap . | . . . . . . Miscellaneous . | . . . . . . Route ------- -11/Scrapyard -10/Materials (discovered 3 exits: *Mat / *Min x2) -10/Mines -9/Materials (discovered 3 exits: [*Mat x2] / *Min) -9/Mines -9/Exiles History --------- Turn | Location | Event 5 | -11/Scrapyard | Discovered new exit (range 15) 123 | -11/Scrapyard | Entered Materials 314 | -10/Materials | Build established: Mutant 612 | -10/Materials | Discovered new exit (range 14) 645 | -10/Materials | Core integrity fell below 50% 749 | -10/Materials | Discovered new exit (range 13) 1010 | -10/Materials | Discovered new exit (range 15) 1046 | -10/Materials | Central database locked down 1743 | -10/Materials | Entered Mines 1762 | -10/Mines | Met a Derelict bent on vengeance 1860 | -10/Mines | Core integrity fell below 20% 1941 | -10/Mines | Found a damaged Exp. Sensor Array with a note attached 1945 | -10/Mines | Found Prototype Device 2044 | -10/Mines | Discovered new exit (range 15) 2069 | -10/Mines | Entered Materials 2069 | -9/Materials | Evolved 2 slots: Propulsion x1, Utility x1 2195 | -9/Materials | Lost 4 parts (1p2n1w) 2692 | -9/Materials | Discovered new exit (range 16) 2953 | -9/Materials | Discovered new exit (range 7) 3000 | -9/Materials | Destroyed 9 combat bots 3160 | -9/Materials | Repaired Imp. Treads 3194 | -9/Materials | Repaired Imp. Treads 3220 | -9/Materials | Discovered new exit (range 5) 3269 | -9/Materials | First assault squad dispatched 3301 | -9/Materials | Entered Mines 3308 | -9/Mines | Learned Materials trap positions 3367 | -9/Mines | Assisted by bots powering up and referring to "LRC-V3" 3436 | -9/Mines | Deemed a non-threat by the Exiles lab entrance 3436 | -9/Mines | Discovered new exit (range 5) 3448 | -9/Mines | Entered Exiles 3448 | -9/Exiles | Accompanied by 3 allies 3485 | -9/Exiles | Met 8R-AWN 3512 | -9/Exiles | Met EX-HEX 3584 | -9/Exiles | Met EX-DEC 3684 | -9/Exiles | Met EX-BIN 3703 | -9/Exiles | Aligned with FarCom system 3704 | -9/Exiles | Given EX-Vault access code 3744 | -9/Exiles | Opened EX-Vault 3762 | -9/Exiles | Found Deploy-a-Sentry 3764 | -9/Exiles | Found Deploy-a-Sentry 3767 | -9/Exiles | Found Deploy-a-Sentry 3803 | -9/Exiles | Warned to stay clear of 0b10 Research branches 3987 | -9/Exiles | DAS Turret deployed 3989 | -9/Exiles | DAS Turret deployed 3991 | -9/Exiles | DAS Turret deployed 3994 | -9/Exiles | Attacked by the Exiles 4023 | -9/Exiles | Core integrity fell below 50% 4035 | -9/Exiles | Destroyed 8R-AWN 4292 | -9/Exiles | Lost 4 parts (1p1n2u) 4425 | -9/Exiles | Destroyed EX-BIN 4443 | -9/Exiles | Destroyed EX-HEX 4498 | -9/Exiles | Core integrity fell below 20% 4507 | -9/Exiles | Destroyed by EX-DEC with AWS/EX-DEC Last Messages --------------- revenge!" 04425_ EX-BIN destroyed. 04431_ Destroyed EX Chip 2. 04443_ EX-HEX destroyed. 04451_ Acquired EX Chip 1. 04454_ Acquired 29 matter. 04467_ Acquired 11 matter. 04469_ Acquired 28 matter. 04474_ Discarded EX Chip 1. 04482_ W1-DM0 destroyed. 04486_ ZX-C33 destroyed. 04487_ Acquired 14 matter. 04494_ Hvy. Assault Rifle destroyed. 04500_ Imp. Treads destroyed. 04501_ Hvy. Ion Engine destroyed. 04502_ Imp. Treads destroyed. 04504_ Critical hit. 04504_ Hvy. Assault Rifle destroyed. 04505_ Testing Chamber Shield damaged. 04505_ Machine disabled. Map ----- +----------------------------------------------------+ | ????????????#" ""#???????????##"" | | ????????????#" ########??####"""" | | ????????????# ## ####""" | | ????????????# """" | | ????????????## | | ????????????# | | ?????????????# | | ??????????????#" " "" | | ??????????????#"""" ""## ##""" " " | | ??????????????#"" ""#### ######""" | | ??????????????#" """"##??# #????###"" | | ??????????????#""" """#???# #??????### | | ??????????????## ""##???! ????????? | | ???????????????#"" """##???#" ???????? | | ???????????????##""" ##????#" ???????? | | ????????????????##"""" ##?????#!!""!"??????? | | ?????????????????### !!! #??????########?????? | | ???????????????????#####=!!!##???????????????????? | | ???????????????????????##! !#????????????????????? | | ????????????????????????#!!!#????????????????????? | | ????????????????????????#! !#????????????????????? | | ????????????????????????# #????????????????????? | | ????????????????????????# #????????????????????? | | ????????????????????????# #????????????????????? | | ????????????????????????# #????????????????????? | | ????????????????????????#@ #????????????????????? | | ????????????????????????#% #????????????????????? | | ????????????????????????#== #????????????????????? | | ????????????????????????#! #????????????????????? | | ???????????????????????""c ""???????????????????? | | ????????????????????? !!! ?????????????????? | | ??????????????????? !!% ! ???????????????? | | ?????????????????? = ??????????????? | | ????????????????? "?????????????? | | ????????????????? "" #?????????????? | | ????????????????? " """" """#?????????????? | | ????????????????"""####### #####?????????????? | | ?????????????????????????? ?????????????????? | | ?????????????????????????? " ?????????????????? | | ??????????????????????????"" "???????????????????? | | ?????????????????????????????????????????????????? | | ?????????????????????????????????????????????????? | | ?????????????????????????????????????????????????? | | ?????????????????????????????????????????????????? | | ?????????????????????????????????????????????????? | | ?????????????????????????????????????????????????? | | ?????????????????????????????????????????????????? | | | | | | | +----------------------------------------------------+ Best States ------------- Heat Dissipation 28 Energy Generation 14 Energy Capacity 280 Matter Stores 300 Matter Capacity 300 Sight Range 16 Terrain Scan Density 10 Armor Coverage 150 Evasion (%) 50 Recoil Reduction 3 Offensive Hacking 7 Item Schematics ----------------- Lrg. Storage Unit | -10/Materials | Hacked Robot Schematics ------------------ None Fabricated ------------ Nothing Alien Tech Used ----------------- None Achievements -------------- None Challenges ------------ None Game ------ Seed OmegaShieldKit Manual? 0 Play Time 00:41:46 Cumulative 143.5 hours Start 2021.12.15 @ 11:45:03 End 2021.12.15 @ 12:46:39 Sessions 1 Manual Loads 0 Difficulty Rogue Special Mode None Game No. 97 Rogue 95 Adventurer 2 Explorer 0 Win Type - Total 1 Types 1/0/0/0/0/0/0/0/0 Lore% 61 Gallery% 67 Achievement% 53 Wizard Run 0 Options --------- ASCII 1 Keyboard 1 Movement Vi Keybinds 0 Fullscreen 1 Font 20/SmallcapsGlow Map View 66x50 Tactical HUD 1 Map Filters NONE Filters NONE Steam 1 RUN: f1b61eee-acdf-45d6-bb31-9108d17548ab